fUSD/lending_fUSD_20260309
["ID","MTS","AMOUNT","RATE_DAILY","PERIOD"]
[408044830,1773067842660,-150.0,0.00019826,2]
[408044831,1773067842669,-225.0,0.00019835,2]
[408044832,1773067842679,-340.94946891,0.00019836,2]
[408044833,1773067842688,-250.0,0.00019837,2]
[408044834,1773067842697,-690.0,0.00019837,2]
[408044835,1773067842706,-500.0,0.00019837,2]
[408044836,1773067842716,-150.0,0.00019837,2]
[408044837,1773067842726,-500.0,0.00019837,2]
[408044838,1773067842736,-500.0,0.00019837,2]
[408044839,1773067842745,-648.0,0.00019837,2]
[408044840,1773067842755,-561.0,0.00019837,2]
[408044841,1773067842766,-500.0,0.00019837,2]
[408044843,1773067842779,-150.0,0.00019837,2]
[408044844,1773067842788,-1796.0,0.00019837,2]
[408044845,1773067842798,-500.0,0.00019837,2]
[408044846,1773067842808,-500.0,0.00019837,2]
[408044847,1773067842818,-150.0,0.00019837,2]
[408044848,1773067842827,-1020.0,0.00019837,2]
[408044849,1773067842836,-500.0,0.00019837,2]
[408044850,1773067842848,-469.0,0.00019837,2]
[408044851,1773067842857,-500.0,0.00019837,2]
[408044852,1773067842866,-500.0,0.00019837,2]
[408044853,1773067842875,-500.0,0.00019837,2]
[408044854,1773067842884,-500.0,0.00019837,2]
[408044855,1773067842894,-709.0,0.00019837,2]
[408044856,1773067842903,-500.0,0.00019837,2]
[408044857,1773067842913,-500.0,0.00019837,2]
[408044858,1773067842922,-939.0,0.00019837,2]
[408044859,1773067842932,-504.61147208,0.00019839,2]
[408044860,1773067842941,-1600.9793735,0.0001984,2]
[408044861,1773067842951,-1600.9793735,0.00019855,2]
[408044862,1773067842960,-504.61147208,0.00019859,2]
[408044863,1773067842969,-151.0,0.00019861,2]
[408044864,1773067842978,-12027.2482029,0.00019865,2]
[408044865,1773067842987,-374746.38799277,0.00019865,2]
[408044866,1773067843048,-500.0,0.00019486,2]
[408044867,1773067843057,-500.0,0.00019486,2]
[408044868,1773067843067,-500.0,0.00019486,2]
[408044869,1773067843076,-500.0,0.00019486,2]
[408044870,1773067843085,-57244.72153396,0.00019865,2]
[408044871,1773067843398,-762.42897974,0.00019089,2]
[408044872,1773067843408,-500.0,0.00019486,2]
[408044873,1773067843417,-382.20396074,0.00019486,2]
[408044874,1773067843427,-120213.00379317,0.00019865,2]
[408044875,1773067843436,-16432.1853231,0.00019865,2]
[408044876,1773067843446,-2735.0,0.00019867,2]
[408044877,1773067843456,-188.0,0.00019868,2]
[408044878,1773067843465,-1600.9793735,0.0001987,2]
[408044879,1773067843475,-250.0,0.00019871,2]
[408044880,1773067843712,-500.0,0.00019873,2]
[408044881,1773067843722,-500.0,0.00019873,2]
[408044882,1773067843731,-323.77109867,0.00019873,2]
[408044883,1773067843741,-500.0,0.00019873,2]
[408044884,1773067843750,-500.0,0.00019873,2]
[408044885,1773067843759,-350.0,0.00019874,2]
[408044886,1773067843772,-4870.2413473,0.00019877,2]
[408044887,1773067843783,-119346.1034745,0.00019877,2]
[408044888,1773067843793,-286.5487623,0.00019877,2]
[408044889,1773067843802,-504.61147208,0.0001988,2]
[408044890,1773067843813,-152.96458514,0.0001988,2]
[408044891,1773067843825,-1600.9793735,0.00019885,2]
[408044892,1773067843836,-690.0,0.00019892,2]
[408044893,1773067843847,-500.0,0.00019892,2]
[408044894,1773067843857,-648.0,0.00019892,2]
[408044895,1773067843867,-561.0,0.00019892,2]
[408044896,1773067843877,-350.0,0.00019892,2]
[408044897,1773067843888,-250.0,0.00019892,2]
[408044898,1773067843898,-1796.0,0.00019892,2]
[408044899,1773067843908,-500.0,0.00019892,2]
[408044900,1773067843917,-500.0,0.00019892,2]
[408044901,1773067843927,-1020.0,0.00019892,2]
[408044902,1773067843936,-500.0,0.00019892,2]
[408044903,1773067843945,-469.0,0.00019892,2]
[408044904,1773067843955,-500.0,0.00019892,2]
[408044905,1773067843964,-500.0,0.00019892,2]
[408044906,1773067843975,-500.0,0.00019892,2]
[408044907,1773067843986,-709.0,0.00019892,2]
[408044908,1773067843996,-500.0,0.00019892,2]
[408044909,1773067844006,-939.0,0.00019892,2]
[408044910,1773067844015,-397.97236465,0.00019898,2]
[408044911,1773067844024,-250.0,0.00019899,2]
[408044912,1773067844033,-16549.24120397,0.000199,3]
[408044913,1773067844043,-5800.0,0.000199,2]
[408044914,1773067844052,-19087.24680656,0.000199,3]
[408044915,1773067844061,-2000.0,0.000199,2]
[408044916,1773067844071,-172.87392778,0.000199,3]
[408044917,1773067844081,-1314.02329397,0.000199,2]
[408044918,1773067844090,-200.0,0.000199,2]
[408044919,1773067844103,-484.31397246,0.000199,2]
[408044920,1773067844112,-8450.75879603,0.000199,3]
[408044921,1773067844122,-10000.0,0.000199,2]
[408044922,1773067844131,-400.81909454,0.000199,2]
[408044923,1773067844140,-200.0,0.000199,2]
[408044924,1773067844149,-832.91727737,0.000199,2]
[408044925,1773067844159,-200.0,0.000199,2]
[408044926,1773067844170,-1600.9793735,0.000199,2]
[408044927,1773067844180,-4834.85672202,0.000199,2]
[408044928,1773067844190,-504.61147208,0.000199,2]
[408044929,1773067844200,-1000.0,0.000199,2]
[408044930,1773067844209,-1000.0,0.000199,2]
[408044931,1773067844220,-846.19889546,0.000199,2]
[408044932,1773067844229,-2735.0,0.00019905,2]
[408044933,1773067844239,-250.0,0.00019905,2]
[408044934,1773067844249,-151.0,0.00019905,2]
[408044935,1773067844258,-757.0,0.0001992,2]
[408044936,1773067844267,-151.0,0.00019931,2]
[408044937,1773067844276,-2772.77,0.00019931,2]
[408044938,1773067844285,-166.66,0.00019938,2]
[408044939,1773067844294,-690.0,0.00019947,2]
[408044940,1773067844303,-372.01172403,0.00019947,2]
[408044941,1773067844313,-648.0,0.00019947,2]
[408044942,1773067844323,-561.0,0.00019947,2]
[408044943,1773067844332,-1796.0,0.00019947,2]
[408044944,1773067844341,-500.0,0.00019947,2]
[408044945,1773067844350,-1020.0,0.00019947,2]
[408044946,1773067844360,-350.0,0.00019947,2]
[408044947,1773067844369,-469.0,0.00019947,2]
[408044948,1773067844379,-709.0,0.00019947,2]
[408044949,1773067844388,-500.0,0.00019947,2]
[408044950,1773067844397,-939.0,0.00019947,2]
[408044951,1773067844407,-250.0,0.00019947,2]
[408044952,1773067844416,-253.0,0.00019952,2]
[408044953,1773067844426,-153.45374546,0.00019962,2]
[408044954,1773067844435,-163.38707578,0.0001997,2]
[408044955,1773067844444,-500.56489866,0.00019973,2]
[408044956,1773067844454,-150.0,0.00019973,2]
[408044957,1773067844463,-3664.0,0.00019973,2]
[408044958,1773067844474,-250.0,0.0001998,2]
[408044959,1773067844484,-2932.42,0.0001998,2]
[408044960,1773067844495,-2932.42,0.0001998,2]
[408044961,1773067844505,-4122.38,0.0001998,2]
[408044962,1773067844515,-2629.0,0.00019982,2]
[408044963,1773067844524,-195.0,0.00019982,2]
[408044964,1773067844533,-813.51170057,0.00019983,2]
[408044965,1773067844542,-152.0,0.00019983,2]
[408044966,1773067844552,-500.0,0.00019987,2]
[408044967,1773067844562,-159.0000009,0.0001999,2]
[408044968,1773067844571,-1042.0,0.0001999,2]
[408044969,1773067844581,-619.0,0.0001999,2]
[408044970,1773067844591,-3505.0,0.0001999,2]
[408044971,1773067844600,-1342.0,0.0001999,2]
[408044972,1773067844609,-1279.0,0.0001999,2]
[408044973,1773067844618,-150.0,0.0001999,2]
[408044974,1773067844627,-3749.0,0.0001999,2]
[408044975,1773067844636,-414.0,0.0001999,2]
[408044976,1773067844645,-5994.0,0.0001999,2]
[408044977,1773067844654,-151.0,0.00019996,2]
[408044978,1773067844664,-151.0,0.00019997,2]
[408044979,1773067844673,-500.0,0.00019998,2]
[408044980,1773067844683,-500.0,0.00019998,2]
[408044981,1773067844692,-500.0,0.00019998,2]
[408044982,1773067844701,-500.0,0.00019998,2]
[408044983,1773067844710,-500.0,0.00019998,2]
[408044984,1773067844720,-300.0,0.00019999,2]
[408044985,1773067844729,-300.0,0.00019999,2]
[408044986,1773067844738,-666.0,0.00019999,2]
[408044987,1773067844747,-300.0,0.00019999,2]
[408044988,1773067844757,-500.0,0.00019999,2]
[408044989,1773067844767,-500.0,0.00019999,2]
[408044990,1773067844781,-500.0,0.00019999,2]
[408044991,1773067844791,-500.0,0.00019999,2]
[408044992,1773067844800,-350.0,0.00019999,2]
[408044993,1773067844811,-150.0,0.00019999,2]
[408044994,1773067844820,-150.0,0.00019999,2]
[408044995,1773067844830,-156.95046837,0.00019999,2]
[408044996,1773067844840,-3000.0,0.00019999,2]
[408044997,1773067844851,-500.0,0.00019999,2]
[408044998,1773067844860,-210.95556175,0.00019999,2]
[408044999,1773067844869,-545.52551133,0.00019999,2]
[408045000,1773067844878,-500.0,0.00019999,2]
[408045001,1773067844887,-495.0176122,0.00019999,2]
[408045002,1773067844896,-500.0,0.00019999,2]
[408045003,1773067844906,-500.0,0.00019999,2]
[408045004,1773067844916,-500.0,0.00019999,2]
[408045005,1773067844926,-417.02492702,0.00019999,2]
[408045006,1773067844937,-958707.11202936,0.0002,2]
[408045039,1773067845950,-662.99535208,0.00019252,2]
[408045040,1773067845962,-99.43362766,0.00019252,2]
[408045041,1773067845971,-1107.08092949,0.00019599,2]
[408045042,1773067845981,-189.1597078,0.000199,2]
[408045043,1773067845991,-767.29822401,0.0002,2]
[408045044,1773067846002,-1141.75539225,0.0002,2]
[408045049,1773067951606,802.66179576,8.6e-05,2]
[408045050,1773068144629,-161.17,0.00014,2]
[408045051,1773068255228,500.0,8.6e-05,2]
[408045052,1773068278827,9276.0,0.0002,120]
[408045053,1773068356163,243.17,0.0002,120]
[408045054,1773068397771,2000.0,0.0002,120]
[408045056,1773068553644,5000.01,9.5e-05,3]
[408045057,1773068553667,5000.01,9.5e-05,3]
[408045058,1773068553690,5000.01,9.5e-05,3]
[408045059,1773068553712,4999.99,9.5e-05,3]
[408045060,1773068623503,-500.0,0.00015,30]
[408045061,1773068623533,-500.0,0.00015372,2]
[408045062,1773068623568,-278.0,0.00015372,2]
[408045063,1773068623598,-180.0,0.00016,2]
[408045064,1773068623628,-300.0,0.00016199,2]
[408045065,1773068623658,-300.0,0.00016199,2]
[408045066,1773068623691,-300.0,0.00016199,2]
[408045067,1773068623721,-300.0,0.00016199,2]
[408045068,1773068623885,-4684.01,0.000162,5]
[408045069,1773068628779,-10000.01,0.000162,5]
[408045070,1773068680925,659.0,0.000136,2]
[408045071,1773069001817,100438.62712904,0.0002,120]
[408045078,1773069031904,-500.0,0.000149,2]
[408045081,1773069031928,-1200.0,0.000151,14]
[408045084,1773069031950,-1002.08186317,0.00016199,2]
[408045086,1773069031960,-943.86901527,0.00016199,2]
[408045089,1773069032014,-256.13098473,0.00016199,2]
[408045090,1773069032025,-2566.44681772,0.000162,5]
[408045091,1773069032038,-73111.98656835,0.000162,5]
[408045092,1773069032048,-154.0,0.000162,2]
[408045093,1773069032061,-418.80293382,0.0001639,2]
[408045094,1773069032072,-4915.0,0.000164,2]
[408045095,1773069032083,-161.17,0.000166,2]
[408045096,1773069032097,-542.0,0.000166,2]
[408045097,1773069032118,-7706.89798013,0.00017,2]
[408045098,1773069032130,-8700.0,0.00017,2]
[408045099,1773069032144,-506.0,0.00017,2]
[408045100,1773069032163,-998.20803551,0.000171,2]
[408045101,1773069032184,-1044.11,0.0001768,2]
[408045102,1773069032206,-259.55,0.0001768,2]
[408045104,1773069032223,-302.2226,0.00017696,2]
[408045105,1773069032240,-3863.5508,0.00017696,2]
[408045106,1773069032259,-1680.0,0.00017796,2]
[408045107,1773069032272,-357.0,0.000178,2]
[408045108,1773069032286,-159.25,0.00018,4]
[408045109,1773069032300,-152.0,0.00018128,3]
[408045110,1773069032311,-6278.0,0.000182,2]
[408045111,1773069032322,-200.0,0.00018338,2]
[408045112,1773069032334,-500.0,0.00018356,7]
[408045113,1773069032344,-500.0,0.00018356,7]
[408045114,1773069032354,-500.0,0.00018356,7]
[408045115,1773069032364,-765.68551834,0.00018363,2]
[408045116,1773069032373,-161.51,0.00018387,2]
[408045117,1773069032383,-1647.15,0.00018387,2]
[408045118,1773069032396,-1552.28,0.00018543,2]
[408045119,1773069032408,-2000.0,0.00018555,2]
[408045120,1773069032418,-1336.89,0.00018555,2]
[408045121,1773069032430,-500.0,0.00018555,2]
[408045122,1773069032443,-2000.0,0.00018589,2]
[408045123,1773069032456,-612.96106873,0.00018604,2]
[408045124,1773069032469,-151.0,0.00018609,2]
[408045125,1773069032489,-151.0,0.00018609,2]
[408045126,1773069032511,-151.0,0.00018609,2]
[408045127,1773069032523,-151.0,0.00018609,2]
[408045128,1773069032536,-151.0,0.00018609,2]
[408045129,1773069032548,-151.0,0.00018609,2]
[408045130,1773069032562,-151.0,0.00018609,2]
[408045131,1773069032573,-151.0,0.00018609,2]
[408045132,1773069032584,-17973.46502207,0.0001862,2]
[408045133,1773069032605,-10056.22667793,0.0001862,2]
[408045134,1773069032615,-1000.0,0.0001862,2]
[408045135,1773069032626,-266.4641917,0.00018632,2]
[408045136,1773069032639,-1500.0,0.00018661,2]
[408045137,1773069032649,-5743.28,0.00018704,2]
[408045138,1773069032661,-612.96106871,0.00018748,2]
[408045139,1773069032671,-1831.7,0.00018766,2]
[408045140,1773069032682,-256.0,0.000188,2]
[408045141,1773069032693,-506.0,0.00018853,3]
[408045142,1773069032703,-492.0,0.00018877,2]
[408045143,1773069032715,-612.96106871,0.00018892,2]
[408045144,1773069032726,-152.0,0.00018967,4]
[408045145,1773069032738,-1428.38747117,0.00018968,2]
[408045146,1773069032748,-8000.0,0.00018968,2]
[408045147,1773069032758,-250.0,0.00018968,2]
[408045148,1773069032768,-477.05617264,0.00018968,2]
[408045149,1773069032782,-428.83006423,0.00018968,2]
[408045165,1773069038586,-94.11376313,0.00018968,2]
[408045166,1773069038596,-6786.89083321,0.00018968,2]
[408045167,1773069038605,-250.0,0.00018968,2]
[408045168,1773069038615,-1500.0,0.00018968,2]
[408045169,1773069038624,-500.0,0.00018968,2]
[408045170,1773069038634,-500.0,0.00018968,2]
[408045171,1773069038645,-578.20924308,0.00018968,2]
[408045172,1773069038654,-500.0,0.00018968,2]
[408045173,1773069038663,-2005.00000002,0.00018968,2]
[408045174,1773069038674,-500.0,0.00018968,2]
[408045175,1773069038684,-250.0,0.00018968,2]
[408045176,1773069038693,-500.0,0.00018968,2]
[408045177,1773069038702,-250.0,0.00018968,2]
[408045178,1773069038711,-500.0,0.00018968,2]
[408045179,1773069038720,-250.0,0.00018968,2]
[408045180,1773069038730,-500.0,0.00018968,2]
[408045181,1773069038740,-500.0,0.00018968,2]
[408045182,1773069038750,-250.0,0.00018968,2]
[408045183,1773069038760,-250.0,0.00018968,2]
[408045184,1773069038769,-250.0,0.00018968,2]
[408045185,1773069038778,-250.0,0.00018968,2]
[408045186,1773069038787,-250.0,0.00018968,2]
[408045187,1773069038796,-250.0,0.00018968,2]
[408045188,1773069038809,-250.0,0.00018968,2]
[408045189,1773069038821,-250.0,0.00018968,2]
[408045190,1773069038831,-174.61919141,0.00018968,2]
[408045191,1773069038840,-264.8357459,0.00018968,2]
[408045192,1773069038849,-1500.0,0.00018968,2]
[408045193,1773069039127,-1500.0,0.00018968,2]
[408045194,1773069039137,-1500.0,0.00018968,2]
[408045195,1773069039146,-925.95947295,0.00018968,2]
[408045196,1773069039157,-272.62944185,0.00018968,2]
[408045197,1773069039166,-486.9115512,0.00018999,2]
[408045198,1773069039176,-10000.0,0.00019,2]
[408045199,1773069039186,-612.96106871,0.00019036,2]
[408045200,1773069039195,-161.0,0.0001904,2]
[408045201,1773069039204,-291.34391315,0.00019054,2]
[408045202,1773069039214,-347.51,0.00019178,2]
[408045203,1773069039223,-1000.0,0.00019178,2]
[408045204,1773069039232,-612.96106871,0.0001918,2]
[408045205,1773069039241,-161.17,0.000192,2]
[408045206,1773069039250,-985.0,0.000192,2]
[408045207,1773069039259,-612.96106871,0.00019324,2]
[408045208,1773069039268,-3355.0,0.000194,2]
[408045209,1773069039278,-202.0,0.00019406,2]
[408045210,1773069039288,-500.0,0.00019452,7]
[408045211,1773069039298,-500.0,0.00019452,7]
[408045212,1773069039309,-1000.0,0.00019452,2]
[408045213,1773069039318,-612.96106871,0.00019468,2]
[408045214,1773069039327,-5682.0,0.00019473,2]
[408045215,1773069039337,-170.9827776,0.00019476,2]
[408045216,1773069039347,-2000.0,0.000195,2]
[408045217,1773069039357,-2500.0,0.000195,2]
[408045218,1773069039367,-1000.0,0.00019516,2]
[408045219,1773069039378,-181.08010149,0.00019516,2]
[408045220,1773069039388,-1920.0,0.00019551,2]
[408045221,1773069039397,-202.0,0.00019569,2]
[408045222,1773069039406,-869.15731152,0.000196,2]
[408045223,1773069039415,-612.96106871,0.00019612,2]
[408045224,1773069039425,-1213.0,0.0001962,2]
[408045225,1773069039435,-922.0,0.0001962,2]
[408045226,1773069039445,-5994.0,0.0001962,2]
[408045227,1773069039455,-188.78130994,0.0001962,2]
[408045236,1773069043151,-510.35025951,0.00017696,2]
[408045237,1773069043163,-1139.33803329,0.00017696,2]
[408045238,1773069043229,-1947.72357344,0.00017696,2]
[408045239,1773069043241,-983.29893358,0.00017696,2]
[408045240,1773069043252,-2179.61083913,0.00017696,2]
[408045250,1773069045913,-41503.89060164,0.00017696,2]
[408045256,1773069046034,-1620.66192896,0.00017696,2]
[408045257,1773069046112,-21598.61697037,0.00017696,2]
[408045258,1773069046128,-8175.66696008,0.00017696,2]
[408045259,1773069046137,-2272.21869006,0.0001962,2]
[408045260,1773069046148,-169.97428486,0.0001962,2]
[408045261,1773069046183,-350.39229772,0.0001962,2]
[408045262,1773069046195,-3228.63341742,0.0001962,2]
[408045264,1773069046205,-1025.17778134,0.00019625,2]
[408045266,1773069163739,-425.6005,0.000148,2]
[408045267,1773069163768,-163.0,0.000164,2]
[408045268,1773069163799,-212.24792,0.00017,2]
[408045269,1773069163828,-2700.31316,0.00017696,2]
[408045270,1773069163903,-2997.68684,0.00017696,2]
[408045271,1773069166822,-181.9,0.00014,2]
[408045289,1773069642475,-225.33344522,0.00016,2]
[408045290,1773069642504,-506.0,0.00017,2]
[408045291,1773069642533,-3524.85067479,0.000176,2]
[408045292,1773069642564,-181.9,0.000179,2]
[408045293,1773069642593,-268.92787203,0.00018256,2]
[408045294,1773069642719,-585.98601592,0.00018256,2]
[408045295,1773069880105,-200.71,0.00014,2]
[408045296,1773070048674,656.66,0.000136,2]
[408045298,1773070131070,5000.0,0.0002,120]
[408045299,1773070138144,5000.0,0.0002,120]
[408045300,1773070152050,5000.0,0.000136,2]
[408045305,1773070232162,-308.923,0.00017,2]
[408045306,1773070232172,-506.0,0.00017,2]
[408045307,1773070232181,-154.88249567,0.00017655,2]
[408045308,1773070232335,-11.77750433,0.00017655,2]
[408045309,1773070232346,-166.66,0.00018027,2]
[408045310,1773070232356,-784.7514975,0.0001822,2]
[408045311,1773070232365,-1200.0,0.00018355,2]
[408045312,1773070232375,-500.0,0.00018356,7]
[408045313,1773070232384,-197.97449942,0.00018356,7]
[408045314,1773070232395,-302.02550058,0.00018356,7]
[408045315,1773070232405,-500.0,0.00018356,7]
[408045316,1773070232414,-300.0,0.00018392,2]
[408045317,1773070232427,-300.0,0.00018392,2]
[408045319,1773070232437,-300.0,0.00018392,2]
[408045321,1773070232447,-3523.1092615,0.00018393,2]
[408045323,1773070232456,-1600.0,0.00018394,2]
[408045325,1773070232466,-166.66,0.00018398,2]
[408045327,1773070232475,-473.5,0.0001844,2]
[408045329,1773070232484,-265.15230123,0.0001854,2]
[408045332,1773070232498,-6438.50683554,0.0001854,2]
[408045375,1773070235699,4343.34,0.000136,2]
[408045376,1773070235720,656.66,0.000136,2]
[408045381,1773070238221,-915.68180285,0.0001854,2]
[408045382,1773070238234,-1738.65906038,0.0001854,2]
[408045383,1773070238244,-1000.0,0.00018604,2]
[408045384,1773070238253,-1358.34230081,0.00018718,2]
[408045385,1773070238267,-1881.65769919,0.00018718,2]
[408045386,1773070238276,-320.0,0.0001872,2]
[408045387,1773070238286,-166.66,0.0001877,2]
[408045388,1773070238296,-200.0,0.0001877,2]
[408045389,1773070238305,-154.66,0.00018842,2]
[408045390,1773070238315,-236.58025834,0.0001887,2]
[408045391,1773070238325,-164.69,0.0001887,2]
[408045392,1773070238335,-1000.0,0.00018904,2]
[408045393,1773070238360,-1000.0,0.00018944,2]
[408045394,1773070238370,-174.61919141,0.00018944,2]
[408045395,1773070238380,-506.0,0.00019032,3]
[408045396,1773070238390,-150.0,0.00019083,2]
[408045397,1773070238400,-550.0,0.00019083,2]
[408045398,1773070238410,-166.66,0.00019142,2]
[408045399,1773070238424,-1000.0,0.00019178,2]
[408045400,1773070238438,-166.66,0.00019188,2]
[408045401,1773070238447,-2000.0,0.000192,2]
[408045402,1773070238458,-600.0,0.0001934,5]
[408045403,1773070238469,-473.5,0.00019362,2]
[408045404,1773070238479,-500.0,0.00019452,7]
[408045405,1773070238490,-500.0,0.00019452,7]
[408045406,1773070238503,-1000.0,0.00019452,2]
[408045407,1773070238513,-417.4672,0.0001947,2]
[408045408,1773070238523,-168.0,0.00019489,2]
[408045410,1773070238533,-1000.0,0.00019492,2]
[408045411,1773070238543,-181.08010149,0.00019492,2]
[408045412,1773070238552,-500.0,0.00019507,2]
[408045413,1773070238562,-500.0,0.00019507,2]
[408045414,1773070238571,-500.0,0.00019507,2]
[408045415,1773070238581,-500.0,0.00019507,2]
[408045416,1773070238591,-500.0,0.00019507,2]
[408045417,1773070238602,-500.0,0.00019507,2]
[408045418,1773070238612,-500.0,0.00019507,2]
[408045419,1773070238621,-500.0,0.00019507,2]
[408045420,1773070238631,-500.0,0.00019507,2]
[408045421,1773070238640,-500.0,0.00019507,2]
[408045423,1773070238650,-500.0,0.00019507,2]
[408045424,1773070238660,-500.0,0.00019507,2]
[408045425,1773070238670,-151.0,0.00019507,2]
[408045426,1773070238679,-151.0,0.00019507,2]
[408045427,1773070238689,-293.6087821,0.00019507,2]
[408045428,1773070238704,-151.0,0.00019507,2]
[408045429,1773070238714,-151.0,0.00019507,2]
[408045430,1773070238725,-151.0,0.00019507,2]
[408045431,1773070238735,-151.0,0.00019507,2]
[408045432,1773070238745,-151.0,0.00019507,2]
[408045433,1773070238756,-151.0,0.00019507,2]
[408045434,1773070238767,-151.0,0.00019507,2]
[408045435,1773070238778,-151.0,0.00019507,2]
[408045436,1773070238788,-151.0,0.00019507,2]
[408045437,1773070238799,-151.0,0.00019507,2]
[408045438,1773070238809,-200.0,0.00019507,2]
[408045439,1773070238819,-151.0,0.00019507,2]
[408045440,1773070238830,-1589.05615642,0.00019509,2]
[408045441,1773070238840,-166.66,0.00019513,2]
[408045442,1773070238849,-46611.4279,0.00019519,2]
[408045443,1773070238859,-498.01271104,0.0001957,2]
[408045445,1773070240772,-1.98728896,0.0001957,2]
[408045446,1773070240783,-23225.1309,0.0001957,2]
[408045447,1773070240792,-350.0,0.000196,2]
[408045448,1773070240802,-579.43820768,0.000196,2]
[408045449,1773070240812,-1051.3441239,0.000196,2]
[408045450,1773070240824,-823.8207441,0.000196,2]
[408045451,1773070240834,-492.48408393,0.000196,2]
[408045461,1773070244350,-614.59684556,0.000196,2]
[408045462,1773070244360,-209.40315444,0.00019608,2]
[408045478,1773070244687,8000.0,0.0002,120]
[408045514,1773070246151,-139.89684556,0.00019608,2]
[408045515,1773070246160,-500.0,0.00019619,2]
[408045516,1773070246169,-500.0,0.00019619,2]
[408045517,1773070246179,-500.0,0.00019619,2]
[408045518,1773070246188,-15017.64986219,0.0001962,2]
[408045519,1773070246199,-250.0,0.0001962,2]
[408045520,1773070246208,-3097.82221866,0.00019625,2]
[408045521,1773070246217,-200.0,0.00019625,2]
[408045522,1773070246226,-200.0,0.00019625,2]
[408045523,1773070246235,-200.0,0.00019625,2]
[408045524,1773070246245,-500.0,0.00019625,2]
[408045525,1773070246254,-202.0,0.0001964,2]
[408045526,1773070246263,-172.87392778,0.00019654,2]
[408045527,1773070246272,-202.0,0.00019655,2]
[408045528,1773070246282,-9812.0,0.00019668,2]
[408045529,1773070246291,-163.0,0.0001967,3]
[408045530,1773070246300,-360.35586836,0.00019672,2]
[408045531,1773070246310,-500.0,0.00019672,2]
[408045532,1773070246319,-500.0,0.00019672,2]
[408045533,1773070246328,-1192.0,0.00019673,2]
[408045534,1773070246338,-150.0,0.00019673,2]
[408045535,1773070246348,-463.0,0.00019673,2]
[408045536,1773070246358,-150.0,0.00019673,2]
[408045537,1773070246367,-500.0,0.00019673,2]
[408045538,1773070246376,-530.0,0.00019673,2]
[408045539,1773070246385,-150.0,0.00019673,2]
[408045540,1773070246395,-45.54880597,0.00019673,2]
[408045541,1773070246406,-335.819307,0.00019673,2]
[408045542,1773070246425,-891.63188703,0.00019673,2]
[408045543,1773070246436,-500.0,0.00019673,2]
[408045544,1773070246446,-527.0,0.00019673,2]
[408045545,1773070246456,-500.0,0.00019673,2]
[408045546,1773070246467,-758.0,0.00019673,2]
[408045547,1773070246476,-150.0,0.00019673,2]
[408045549,1773070246485,-305.76343297,0.00019673,2]
[408045550,1773070246501,-194.23656703,0.00019673,2]
[408045552,1773070246511,-251.26343297,0.000197,2]
[408045553,1773070246523,-998.75936882,0.000197,2]
[408045554,1773070246536,-881.45672485,0.000197,2]
[408045555,1773070246548,-368.52047336,0.000197,2]
[408045556,1773070246557,-443.54,0.00019711,2]
[408045557,1773070246567,-1000.0,0.00019726,2]
[408045558,1773070246576,-1192.0,0.00019728,2]
[408045559,1773070246586,-463.0,0.00019728,2]
[408045560,1773070246596,-150.0,0.00019728,2]